{"text_format":"1","workbook":"xlsx","n_sheets":4,"sheets":["Задание 1","Задание 2","Задание 3","Результат"],"not_rendered":{"charts":0,"images":0,"macros":1,"external_links":0,"defined_names":0,"comments":0,"pivot_tables":0},"unopened":[],"bounds":{"document_bytes":16777216,"sheet_cells":100000,"rows_first":2000,"rows_last":500,"rows_between":2000,"halvings":0,"cell_chars":16384,"cell_head_chars":4096},"cells_cut":0,"cells_raw":0,"read":"whole","date_system":"1900"}

{"sheet":"Задание 1","index":0,"n_rows":28,"n_cols":16,"rows_kept":28,"cut":false,"hidden":false,"merged":[[5,5,6,5],[5,6,6,6],[1,1,1,7],[5,7,6,7],[3,0,3,7],[5,0,6,0],[5,1,6,1],[5,2,6,2],[5,3,6,3],[5,4,6,4],[22,0,25,7],[8,4,8,6],[9,4,9,6],[10,4,10,6],[11,4,11,6],[8,0,8,2],[9,0,9,2],[13,0,13,2],[15,0,18,7],[14,0,14,7],[10,0,10,2],[11,0,11,2],[21,0,21,7],[20,0,20,2]]}
[]
["Фамилия","Фамилия Имя"]
[]
["Задание 1",null,null,null,null,null,null,null,null,null,null,null,1,"Синий"]
[1,2,3,4,5,6,7,8,null,null,null,null,3,"Красный"]
["Синий","Зеленый","Красный","Фиолетовый","Желтый","Серый","Коричневый","Черный",null,null,null,null,4,"Желтый"]
[null,null,null,null,null,null,null,null,null,null,null,null,2,"Зеленый"]
[null,null,null,null,null,null,null,null,null,null,null,null,5,"Фиолетовый"]
["Место синего",null,null,{"$f":"IF(A6=N4,1,IF(B6=N4,2,IF(C6=N4,3,IF(D6=N4,4,IF(E6=N4,5,IF(F6=N4,6,IF(G6=N4,7,IF(H6=N4,8,))))))))","v":1},"Место зеленого",null,null,{"$f":"IF(A6=N7,1,IF(B6=N7,2,IF(C6=N7,3,IF(D6=N7,4,IF(E6=N7,5,IF(F6=N7,6,IF(G6=N7,7,IF(H6=N7,8,))))))))","v":2},null,null,null,null,0,"Серый"]
["Место красного",null,null,{"$f":"IF(A6=N5,1,IF(B6=N5,2,IF(C6=N5,3,IF(D6=N5,4,IF(E6=N5,5,IF(F6=N5,6,IF(G6=N5,7,IF(H6=N5,8,))))))))","v":3},"Место фиолетового",null,null,{"$f":"IF(A6=N8,1,IF(B6=N8,2,IF(C6=N8,3,IF(D6=N8,4,IF(E6=N8,5,IF(F6=N8,6,IF(G6=N8,7,IF(H6=N8,8,))))))))","v":4},null,null,null,null,6,"Коричневый"]
["Место желтого",null,null,{"$f":"IF(A6=N6,1,IF(B6=N6,2,IF(C6=N6,3,IF(D6=N6,4,IF(E6=N6,5,IF(F6=N6,6,IF(G6=N6,7,IF(H6=N6,8,))))))))","v":5},"Место серого",null,null,{"$f":"IF(A6=N9,1,IF(B6=N9,2,IF(C6=N9,3,IF(D6=N9,4,IF(E6=N9,5,IF(F6=N9,6,IF(G6=N9,7,IF(H6=N9,8,))))))))","v":6},null,null,null,null,7,"Черный"]
["Место коричневого",null,null,{"$f":"IF(A6=N10,1,IF(B6=N10,2,IF(C6=N10,3,IF(D6=N10,4,IF(E6=N10,5,IF(F6=N10,6,IF(G6=N10,7,IF(H6=N10,8,))))))))","v":7},"Место черного",null,null,{"$f":"IF(A6=N11,1,IF(B6=N11,2,IF(C6=N11,3,IF(D6=N11,4,IF(E6=N11,5,IF(F6=N11,6,IF(G6=N11,7,IF(H6=N11,8,))))))))","v":8}]
[null,null,null,null,null,null,null,null,null,null,null,null,3,"красный",1,{"$f":"IF(D10=O13,0,ABS(D10-O13))","v":2}]
["Вегетативный коэффициент",null,null,{"$f":"ROUND((18-D10-D11)/(18-D9-H9),1)","v":0.7},null,null,null,null,null,null,null,null,4,"желтый",2,{"$f":"IF(D11=O14,0,ABS(D11-O14))","v":3}]
["Интерпретация:",null,null,null,null,null,null,null,null,null,null,null,2,"зеленый",3,{"$f":"IF(H9=O15,0,ABS(H9-O15))","v":1}]
[{"$f":"IF(AND(D14>=0,D14<=0.5),N21,IF(AND(D14>=0.51,D14<=0.91),N22,IF(AND(D14>=0.92,D14<=1.9),N23,N24)))","v":"Компенсируемое состояние усталости. Самовосстановление оптимальной работоспособности происходит за счет периодического снижения активности. Необходима оптимизация рабочего ритма, режима труда и отдыха."},null,null,null,null,null,null,null,null,null,null,null,5,"фиолетовый",4,{"$f":"IF(H10=O16,0,ABS(H10-O16))","v":0}]
[null,null,null,null,null,null,null,null,null,null,null,null,1,"синий",5,{"$f":"IF(D9=O17,0,ABS(D9-O17))","v":4}]
[null,null,null,null,null,null,null,null,null,null,null,null,6,"коричневый",6,{"$f":"IF(D12=O18,0,ABS(D12-O18))","v":1}]
[null,null,null,null,null,null,null,null,null,null,null,null,0,"серый",7,{"$f":"IF(H11=O19,0,ABS(H11-O19))","v":1}]
[null,null,null,null,null,null,null,null,null,null,null,null,7,"черный",8,{"$f":"IF(H12=O20,0,ABS(H12-O20))","v":0}]
["Суммарное отклонение",null,null,{"$f":"SUM(P13:P20)","v":12},null,null,null,null,null,null,null,null,"0 - 0,5","Хроническое переутомление, истощение, низкая работоспособность. Нагрузки непосильны для ребенка."]
[{"$f":"A15","v":"Интерпретация:"},null,null,null,null,null,null,null,null,null,null,null,"0,51 - 0,91","Компенсируемое состояние усталости. Самовосстановление оптимальной работоспособности происходит за счет периодического снижения активности. Необходима оптимизация рабочего ритма, режима труда и отдыха."]
[{"$f":"IF(AND(D21>=0,D21<10),N28,IF(AND(D21>=10,D21<=18),N27,IF(D21>=20,N26,)))","v":"Эмоциональное состояние в норме. Ребенок может радоваться и печалиться, поводов для беспокойства нет. "},null,null,null,null,null,null,null,null,null,null,null,"0,92 - 1,9","Оптимальная работоспособность. Ребенок отличается бодростью, здоровой активностью, готовностью к энергозатратам. Нагрузки соответствуют возможностям. Образ жизни позволяет ребенку восстанавливать затраченную энергию."]
[null,null,null,null,null,null,null,null,null,null,null,null,"> 2,0","Перевозбуждение. Чаще является результатом работы ребенка на пределе своих возможностей, что приводит к быстрому истощению. Требуется нормализация темпа деятельности, режима труда и отдыха, а иногда и снижение нагрузки."]
[]
[null,null,null,null,null,null,null,null,null,null,null,null,"> 20","Преобладание отрицательных эмоций. У ребенка доминируют плохое настроение и неприятные переживания. Имеются проблемы, которые ребенок не может решить самостоятельно."]
[null,null,null,null,null,null,null,null,null,null,null,null,"10 - 18","Эмоциональное состояние в норме. Ребенок может радоваться и печалиться, поводов для беспокойства нет. "]
[null,null,null,null,null,null,null,null,null,null,null,null,"<10","Преобладание положительных эмоций. Ребенок весел, счастлив, настроен оптимистично."]

{"sheet":"Задание 2","index":1,"n_rows":34,"n_cols":19,"rows_kept":34,"cut":false,"hidden":false,"merged":[[27,0,31,9],[32,0,32,9],[33,0,37,9],[14,0,14,9],[15,0,19,9],[20,0,20,9],[21,0,25,9],[26,0,26,9],[7,0,7,9],[8,0,8,9],[9,0,13,9],[1,0,1,9],[4,8,5,8],[4,9,5,9],[4,6,5,6],[4,7,5,7],[4,5,5,5],[4,0,5,0],[4,1,5,1],[4,2,5,2],[4,3,5,3],[4,4,5,4]]}
[]
["Задание 2"]
["Счастье","Горе","Справедливость","Обида","Дружба","Ссора","Доброта","Злоба","Скука","Восхищение"]
[1,2,3,4,5,6,7,8,9,10]
["Красный","Желтый","Синий","Фиолетовый","Зеленый","Серый","Синий","Черный","Фиолетовый","Синий"]
[]
[null,null,null,null,null,null,null,null,null,null,null,null,1,"Синий",null,null,"Блок базового комфорта и благополучия:","Счастье - Горе","Нарушения в этом блоке свидетельствуют о том, что ребенок не чувствует себя достаточно любимым, принятым. Родители не достаточно проявляют свою любовь (объятия, поцелуи, поддержка, похвала, праздник от общения, который ребенок должен почувствовать кожей). Например, если родители, уставшие, раздраженные после работы срывают свое раздражение на ребенке, и он считает, что его не любят."]
["Нарушения личностных блоков",null,null,null,null,null,null,null,null,null,null,null,3,"Красный",null,null,"Блок личностного роста:","Справедливость - Обида","Часто ребенок чувствует обиду за запрет родителей или наказание за проступок. Необходимо объяснить так, чтобы ребенок понял справедливость наказания или запрета. Если родители что-то не разрешают, а ребенок очень этого хочет, и, поэтому, не соглашается со справедливостью наказания, то нужно предложить альтернативу запрету или предложить сделать это вместе."]
["Счастье - Горе",null,null,null,null,null,null,null,null,null,null,null,4,"Желтый",null,null,"Блок взаимоотношений или межличностного взаимодействия:","Дружба - Ссора","Нарушение в этом блоке свидетельствует о том, что родители не умеют «отдаться» ребенку. Телевидение не должно заменять живое общение, необходимо ежедневно играть с ребенком и выделять время, которое принадлежит только ему. Учить взаимодействовать с другими сверстниками, учить дружить, т.е. понимать другого, делиться. Научить этому можно только собственным примером в общении с ребенком."]
[{"$f":"IF(OR(A5=N13,A5=N14,B5=N7,B5=N8,B5=N9,B5=N10,B5=N11,B5=N12),S7,\"Нарушений нет\")","v":"Нарушения в этом блоке свидетельствуют о том, что ребенок не чувствует себя достаточно любимым, принятым. Родители не достаточно проявляют свою любовь (объятия, поцелуи, поддержка, похвала, праздник от общения, который ребенок должен почувствовать кожей). Например, если родители, уставшие, раздраженные после работы срывают свое раздражение на ребенке, и он считает, что его не любят."},null,null,null,null,null,null,null,null,null,null,null,2,"Зеленый",null,null,"Блок потенциальной агрессии:","Доброта - Злоба","Нарушение в этом блоке формирует гнев, враждебность и агрессию, как механизм психологической защиты. Чтобы этого избежать необходимо самим совершать на глазах у ребенка и вместе с ним добрые, хорошие поступки. Проявлять доброту к окружающим, воспитывая подобное подобным. Необходимо содействие с ребенком, доверие, открытость. Беседы о добре и зле, чтение духовно – нравственной литературы."]
[null,null,null,null,null,null,null,null,null,null,null,null,5,"Фиолетовый",null,null,"Блок познавания мира:","Скука - Восхищение","Скука – монотонное состояние, которое ребенок трудно переносит, необходимо научить ребенка радоваться жизни. Это возможно только через эмоциональное заражение от родителей. Ребенок должен испытывать радость от познания чего–то нового. Нарушения в этом блоке могут привести к формированию злорадства, т.е. злоба может вызывать азартное возбуждение, приносящее эмоциональное удовлетворение. Этого нельзя допускать."]
[null,null,null,null,null,null,null,null,null,null,null,null,0,"Серый"]
[null,null,null,null,null,null,null,null,null,null,null,null,6,"Коричневый"]
[null,null,null,null,null,null,null,null,null,null,null,null,7,"Черный"]
[{"$f":"R8","v":"Справедливость - Обида"}]
[{"$f":"IF(OR(C5=N13,C5=N14,D5=N7,D5=N8,D5=N9,D5=N10,D5=N11,D5=N12),S8,\"Нарушений нет\")","v":"Часто ребенок чувствует обиду за запрет родителей или наказание за проступок. Необходимо объяснить так, чтобы ребенок понял справедливость наказания или запрета. Если родители что-то не разрешают, а ребенок очень этого хочет, и, поэтому, не соглашается со справедливостью наказания, то нужно предложить альтернативу запрету или предложить сделать это вместе."},null,null,null,null,null,null,null,null,null,null,null,3,"красный",1]
[null,null,null,null,null,null,null,null,null,null,null,null,4,"желтый",2]
[null,null,null,null,null,null,null,null,null,null,null,null,2,"зеленый",3]
[null,null,null,null,null,null,null,null,null,null,null,null,5,"фиолетовый",4]
[null,null,null,null,null,null,null,null,null,null,null,null,1,"синий",5]
[{"$f":"R9","v":"Дружба - Ссора"},null,null,null,null,null,null,null,null,null,null,null,6,"коричневый",6]
[{"$f":"IF(OR(E5=N13,E5=N14,F5=N7,F5=N8,F5=N9,F5=N10,F5=N11,F5=N12),S9,\"Нарушений нет\")","v":"Нарушение в этом блоке свидетельствует о том, что родители не умеют «отдаться» ребенку. Телевидение не должно заменять живое общение, необходимо ежедневно играть с ребенком и выделять время, которое принадлежит только ему. Учить взаимодействовать с другими сверстниками, учить дружить, т.е. понимать другого, делиться. Научить этому можно только собственным примером в общении с ребенком."},null,null,null,null,null,null,null,null,null,null,null,0,"серый",7]
[null,null,null,null,null,null,null,null,null,null,null,null,7,"черный",8]
[]
[]
[]
[{"$f":"R10","v":"Доброта - Злоба"}]
[{"$f":"IF(OR(G5=N13,G5=N14,H5=N7,H5=N8,H5=N9,H5=N10,H5=N11,H5=N12),S10,\"Нарушений нет\")","v":"Нарушений нет"}]
[]
[]
[]
[]
[{"$f":"R11","v":"Скука - Восхищение"}]
[{"$f":"IF(OR(I5=N13,I5=N14,J5=N7,J5=N8,J5=N9,J5=N10,J5=N11,J5=N12),S11,\"Нарушений нет\")","v":"Скука – монотонное состояние, которое ребенок трудно переносит, необходимо научить ребенка радоваться жизни. Это возможно только через эмоциональное заражение от родителей. Ребенок должен испытывать радость от познания чего–то нового. Нарушения в этом блоке могут привести к формированию злорадства, т.е. злоба может вызывать азартное возбуждение, приносящее эмоциональное удовлетворение. Этого нельзя допускать."}]

{"sheet":"Задание 3","index":2,"n_rows":34,"n_cols":15,"rows_kept":34,"cut":false,"hidden":false,"merged":[[7,0,7,9],[8,0,12,0],[8,1,12,1],[14,8,15,8],[14,9,15,9],[8,8,12,8],[8,9,12,9],[14,0,15,0],[14,1,15,1],[14,2,15,2],[14,3,15,3],[14,4,15,4],[14,5,15,5],[14,6,15,6],[14,7,15,7],[8,3,12,3],[0,0,0,9],[3,0,4,0],[3,1,4,1],[3,2,4,2],[3,3,4,3],[3,4,4,4],[3,5,4,5],[3,6,4,6],[3,7,4,7],[3,8,4,8],[3,9,4,9],[8,2,12,2],[18,2,18,7],[19,2,19,7],[20,2,20,7],[21,2,21,7],[8,7,12,7],[17,0,17,7],[8,4,12,4],[8,5,12,5],[8,6,12,6],[22,2,22,7],[22,0,22,1],[23,0,23,1],[18,0,18,1],[19,0,19,1],[20,0,20,1],[21,0,21,1]]}
["Задание 2"]
["Счастье","Горе","Справедливость","Обида","Дружба","Ссора","Доброта","Злоба","Скука","Восхищение"]
[1,2,3,4,5,6,7,8,9,10]
[{"$f":"'Задание 2'!A5","v":"Красный"},{"$f":"'Задание 2'!B5","v":"Желтый"},{"$f":"'Задание 2'!C5","v":"Синий"},{"$f":"'Задание 2'!D5","v":"Фиолетовый"},{"$f":"'Задание 2'!E5","v":"Зеленый"},{"$f":"'Задание 2'!F5","v":"Серый"},{"$f":"'Задание 2'!G5","v":"Синий"},{"$f":"'Задание 2'!H5","v":"Черный"},{"$f":"'Задание 2'!I5","v":"Фиолетовый"},{"$f":"'Задание 2'!J5","v":"Синий"}]
[]
[]
[]
["Задание 3"]
["Душа","Настроение, когда идешь в школу","Настроение на уроке чтения","Настроение на уроке письма","Настроение на уроке математики","Настроение, когда ты разговариваешь с учителем","Настроение, когда ты общаешься со своими одноклассниками","Настроение, когда ты находишься дома","Настроение, когда ты делаешь уроки","Придумайте сами"]
[]
[]
[]
[null,null,null,null,null,null,null,null,null,null,null,null,1,"Синий"]
[1,2,3,4,5,6,7,8,9,10,null,null,3,"Красный"]
["Синий","Зеленый","Красный","Серый","Зеленый","Черный","Синий","Красный","Серый","Черный",null,null,4,"Желтый"]
[null,null,null,null,null,null,null,null,null,null,null,null,2,"Зеленый"]
[null,null,null,null,null,null,null,null,null,null,null,null,5,"Фиолетовый"]
["Корреляция:",null,null,null,null,null,null,null,null,null,null,null,0,"Серый"]
["Горе",null,{"$f":"IF(B4=A15,A9,IF(B4=B15,B9,IF(B4=C15,C9,IF(B4=D15,D9,IF(B4=E15,E9,IF(B4=F15,F9,IF(B4=G15,G9,IF(B4=H15,H9,IF(B4=I15,I9,IF(B4=J15,J9,\"\"))))))))))","v":""},null,null,null,null,null,null,null,null,null,6,"Коричневый"]
["Обида",null,{"$f":"IF(D4=A15,A9,IF(D4=B15,B9,IF(D4=C15,C9,IF(D4=D15,D9,IF(D4=E15,E9,IF(D4=F15,F9,IF(D4=G15,G9,IF(D4=H15,H9,IF(D4=I15,I9,IF(D4=J15,J9,\"\"))))))))))","v":""},null,null,null,null,null,null,null,null,null,7,"Черный"]
["Ссора",null,{"$f":"IF(F4=A15,A9,IF(F4=B15,B9,IF(F4=C15,C9,IF(F4=D15,D9,IF(F4=E15,E9,IF(F4=F15,F9,IF(F4=G15,G9,IF(F4=H15,H9,IF(F4=I15,I9,IF(F4=J15,J9,\"\"))))))))))","v":"Настроение на уроке письма"}]
["Злоба",null,{"$f":"IF(H4=A15,A9,IF(H4=B15,B9,IF(H4=C15,C9,IF(H4=D15,D9,IF(H4=E15,E9,IF(H4=F15,F9,IF(H4=G15,G9,IF(H4=H15,H9,IF(H4=I15,I9,IF(H4=J15,J9,\"\"))))))))))","v":"Настроение, когда ты разговариваешь с учителем"},null,null,null,null,null,null,null,null,null,3,"красный",1]
["Скука",null,{"$f":"IF(I4=A15,A9,IF(I4=B15,B9,IF(I4=C15,C9,IF(I4=D15,D9,IF(I4=E15,E9,IF(I4=F15,F9,IF(I4=G15,G9,IF(I4=H15,H9,IF(I4=I15,I9,IF(I4=J15,J9,\"\"))))))))))","v":""},null,null,null,null,null,null,null,null,null,4,"желтый",2]
[null,null,null,null,null,null,null,null,null,null,null,null,2,"зеленый",3]
["Внутренний мир",null,null,{"$f":"IF(OR(A15=N18,A15=N19,A15=N20),\"Обратить внимание\",\"Отклонений нет\")","v":"Отклонений нет"},null,null,null,null,null,null,null,null,5,"фиолетовый",4]
["Идти в школу",null,null,{"$f":"IF(OR(B15=N18,B15=N19,B15=N20),\"Обратить внимание\",\"Отклонений нет\")","v":"Отклонений нет"},null,null,null,null,null,null,null,null,1,"синий",5]
["Урок чтения",null,null,{"$f":"IF(OR(C15=N18,C15=N19,C15=N20),\"Обратить внимание\",\"Отклонений нет\")","v":"Отклонений нет"},null,null,null,null,null,null,null,null,6,"коричневый",6]
["Урок письма",null,null,{"$f":"IF(OR(D15=N18,D15=N19,D15=N20),\"Обратить внимание\",\"Отклонений нет\")","v":"Обратить внимание"},null,null,null,null,null,null,null,null,0,"серый",7]
["Урок математики",null,null,{"$f":"IF(OR(E15=N18,E15=N19,E15=N20),\"Обратить внимание\",\"Отклонений нет\")","v":"Отклонений нет"},null,null,null,null,null,null,null,null,7,"черный",8]
["Отношения с учителями",null,null,{"$f":"IF(OR(F15=N18,F15=N19,F15=N20),\"Обратить внимание\",\"Отклонений нет\")","v":"Обратить внимание"}]
["Отношения с одноклассниками",null,null,{"$f":"IF(OR(G15=N18,G15=N19,G15=N20),\"Обратить внимание\",\"Отклонений нет\")","v":"Отклонений нет"}]
["Отношение дома",null,null,{"$f":"IF(OR(H15=N18,H15=N19,H15=N20),\"Обратить внимание\",\"Отклонений нет\")","v":"Отклонений нет"}]
["Делать уроки",null,null,{"$f":"IF(OR(I15=N18,I15=N19,I15=N20),\"Обратить внимание\",\"Отклонений нет\")","v":"Обратить внимание"}]
["\"Придумай сам\"",null,null,{"$f":"IF(OR(J15=N18,J15=N19,J15=N20),\"Обратить внимание\",\"Отклонений нет\")","v":"Обратить внимание"}]

{"sheet":"Результат","index":3,"n_rows":40,"n_cols":8,"rows_kept":40,"cut":false,"hidden":false,"merged":[[38,7,38,8],[35,4,35,6],[36,4,36,6],[37,4,37,6],[38,4,38,6],[38,0,38,1],[34,2,34,3],[35,2,35,3],[36,2,36,3],[37,2,37,3],[38,2,38,3],[36,0,36,1],[20,0,20,8],[21,0,23,8],[24,0,24,8],[34,7,34,8],[37,0,37,1],[35,7,35,8],[36,7,36,8],[37,7,37,8],[39,5,39,8],[6,0,7,8],[8,0,8,8],[11,0,11,8],[12,0,12,8],[28,0,28,8],[25,0,27,8],[33,0,33,8],[9,0,10,8],[29,0,32,8],[34,0,34,1],[35,0,35,1],[34,4,34,6],[13,0,15,8],[16,0,16,8],[17,0,19,8],[0,0,0,8],[2,1,2,5],[2,7,2,8],[4,0,4,8],[5,0,5,8]]}
["Проективный тест “Домики”"]
[]
["ФИО",{"$f":"'Задание 1'!B2","v":"Фамилия Имя"},null,null,null,null,"Дата",{"$f":"TODAY()","v":"2018-10-30"}]
[]
["Задание 1"]
[{"$f":"CONCATENATE('Задание 1'!A14:C14,\": \",'Задание 1'!D14)","v":"Вегетативный коэффициент: 0,7"}]
[{"$f":"'Задание 1'!A16","v":"Компенсируемое состояние усталости. Самовосстановление оптимальной работоспособности происходит за счет периодического снижения активности. Необходима оптимизация рабочего ритма, режима труда и отдыха."}]
[]
[{"$f":"CONCATENATE('Задание 1'!A21:C21,\": \",'Задание 1'!D21)","v":"Суммарное отклонение: 12"}]
[{"$f":"'Задание 1'!A23","v":"Эмоциональное состояние в норме. Ребенок может радоваться и печалиться, поводов для беспокойства нет. "}]
[]
["Задание 2"]
[{"$f":"'Задание 2'!A9:J9","v":"Счастье - Горе"}]
[{"$f":"'Задание 2'!A10","v":"Нарушения в этом блоке свидетельствуют о том, что ребенок не чувствует себя достаточно любимым, принятым. Родители не достаточно проявляют свою любовь (объятия, поцелуи, поддержка, похвала, праздник от общения, который ребенок должен почувствовать кожей). Например, если родители, уставшие, раздраженные после работы срывают свое раздражение на ребенке, и он считает, что его не любят."}]
[]
[]
[{"$f":"'Задание 2'!A15","v":"Справедливость - Обида"}]
[{"$f":"'Задание 2'!A16","v":"Часто ребенок чувствует обиду за запрет родителей или наказание за проступок. Необходимо объяснить так, чтобы ребенок понял справедливость наказания или запрета. Если родители что-то не разрешают, а ребенок очень этого хочет, и, поэтому, не соглашается со справедливостью наказания, то нужно предложить альтернативу запрету или предложить сделать это вместе."}]
[]
[]
[{"$f":"'Задание 2'!A21","v":"Дружба - Ссора"}]
[{"$f":"'Задание 2'!A22","v":"Нарушение в этом блоке свидетельствует о том, что родители не умеют «отдаться» ребенку. Телевидение не должно заменять живое общение, необходимо ежедневно играть с ребенком и выделять время, которое принадлежит только ему. Учить взаимодействовать с другими сверстниками, учить дружить, т.е. понимать другого, делиться. Научить этому можно только собственным примером в общении с ребенком."}]
[]
[]
[{"$f":"'Задание 2'!A27","v":"Доброта - Злоба"}]
[{"$f":"'Задание 2'!A28","v":"Нарушений нет"}]
[]
[]
[{"$f":"'Задание 2'!A33","v":"Скука - Восхищение"}]
[{"$f":"'Задание 2'!A34","v":"Скука – монотонное состояние, которое ребенок трудно переносит, необходимо научить ребенка радоваться жизни. Это возможно только через эмоциональное заражение от родителей. Ребенок должен испытывать радость от познания чего–то нового. Нарушения в этом блоке могут привести к формированию злорадства, т.е. злоба может вызывать азартное возбуждение, приносящее эмоциональное удовлетворение. Этого нельзя допускать."}]
[]
[]
[]
["Задание 3"]
[{"$f":"'Задание 3'!A25","v":"Внутренний мир"},null,{"$f":"'Задание 3'!D25","v":"Отклонений нет"},null,{"$f":"'Задание 3'!A30","v":"Отношения с учителями"},null,null,{"$f":"'Задание 3'!D30","v":"Обратить внимание"}]
[{"$f":"'Задание 3'!A26","v":"Идти в школу"},null,{"$f":"'Задание 3'!D26","v":"Отклонений нет"},null,{"$f":"'Задание 3'!A31","v":"Отношения с одноклассниками"},null,null,{"$f":"'Задание 3'!D31","v":"Отклонений нет"}]
[{"$f":"'Задание 3'!A27","v":"Урок чтения"},null,{"$f":"'Задание 3'!D27","v":"Отклонений нет"},null,{"$f":"'Задание 3'!A32","v":"Отношение дома"},null,null,{"$f":"'Задание 3'!D32","v":"Отклонений нет"}]
[{"$f":"'Задание 3'!A28","v":"Урок письма"},null,{"$f":"'Задание 3'!D28","v":"Обратить внимание"},null,{"$f":"'Задание 3'!A33","v":"Делать уроки"},null,null,{"$f":"'Задание 3'!D33","v":"Обратить внимание"}]
[{"$f":"'Задание 3'!A29","v":"Урок математики"},null,{"$f":"'Задание 3'!D29","v":"Отклонений нет"},null,{"$f":"'Задание 3'!A34","v":"\"Придумай сам\""},null,null,{"$f":"'Задание 3'!D34","v":"Обратить внимание"}]
[null,null,null,null,null,"http://eschool.by/courses/psy"]